bitfinex-derivatives/quotes_BNBF0:USTF0_20250116
["timestamp","ask_amount","ask_price","bid_price","bid_amount"]
[1737020759187,0.28316579,706.3,705.22,0.26043256]
[1737020759388,0.28316579,706.3,705.23,0.26043256]
[1737020759688,0.28316579,706.3,705.24,0.26043256]
[1737020759987,0.28316579,706.3,705.25,0.26043256]
[1737020760189,0.28316579,706.3,705.26,0.26043256]
[1737020760388,0.28316579,706.3,705.27,0.26043256]
[1737020760591,0.28316579,706.3,705.28,0.26043256]
[1737020760787,0.28316579,706.3,705.15,0.2604247]
[1737020760984,0.28316579,706.3,705.29,0.2604247]
[1737020761190,0.28316579,706.3,705.3,0.2604247]
[1737020761390,0.28316579,706.3,705.31,0.2604247]
[1737020761693,0.28316579,706.3,705.32,0.2604247]
[1737020761895,0.28316579,706.3,705.17,1.06099916]
[1737020762092,0.28316579,706.3,705.18,0.26041592]
[1737020762593,0.28316579,706.3,705.21,1.06099916]
[1737020762793,0.28316579,706.3,705.22,0.26040756]
[1737020763795,0.28316579,706.3,705.24,1.06099916]
[1737020763995,0.28316579,706.3,705.25,0.26040756]
[1737020764497,0.28316579,706.3,705.27,1.06099916]
[1737020764694,0.28316579,706.3,705.28,0.26040756]
[1737020765295,0.28316579,706.3,705.3,1.06099916]
[1737020765496,0.28316579,706.3,705.31,0.26040722]
[1737020766098,0.28316579,706.3,705.3,1.06099916]
[1737020766295,0.28316579,706.3,705.31,0.26040136]
[1737020766496,0.28316579,706.3,705.34,1.06099916]
[1737020766692,0.28316579,706.3,705.35,0.26040136]
[1737020768098,0.28316579,706.3,705.34,1.06099916]
[1737020768799,0.28316579,706.3,705.37,1.06099916]
[1737020769999,0.28316579,706.3,705.34,1.06099916]
[1737020771102,0.28316579,706.3,705.37,1.06099916]
[1737020772396,0.28316579,706.3,705.38,1.06099916]
[1737020773300,0.28316579,706.3,705.39,1.06099916]
[1737020775300,0.28316579,706.3,705.42,1.06099916]
[1737020776300,0.28316579,706.3,705.4,1.06099916]
[1737020777303,0.28316579,706.3,705.41,1.06099916]
[1737020779705,0.28316579,706.3,705.47,1.06099916]
[1737020782005,0.28316579,706.3,705.2,1.06099916]
[1737020782205,0.28316579,706.3,705.21,0.26039499]
[1737020782402,0.28316579,706.3,705.22,0.26039499]
[1737020782706,0.28316579,706.3,705.23,0.26039499]
[1737020782907,0.28316579,706.3,705.24,0.26039499]
[1737020783107,0.28316579,706.3,705.25,0.26039499]
[1737020783408,0.28316579,706.3,705.26,0.26039499]
[1737020783607,0.28316579,706.3,705.27,0.26039499]
[1737020783807,0.28316579,706.3,705.28,0.26039499]
[1737020784007,0.28316579,706.3,705.29,0.26039499]
[1737020784201,0.28316579,706.3,705.3,0.26039499]
[1737020784400,0.28316579,706.3,705.31,0.26039499]
[1737020784606,0.28316579,706.3,705.32,0.26039499]
[1737020784907,0.28316579,706.3,705.33,0.2603935]
[1737020785203,0.28316579,706.3,705.34,0.2603935]
[1737020785401,0.28316579,706.3,704.76,5.1299089]
[1737020785402,0.28316579,706.3,705.35,0.2603935]
[1737020785602,0.28316579,706.3,705.36,0.2603935]
[1737020785808,0.28316579,706.3,705.37,0.2603935]
[1737020786007,0.28316579,706.3,705.38,0.2603935]
[1737020786203,0.28316579,706.3,705.39,0.2603935]
[1737020786405,0.28316579,706.3,705.4,0.2603935]
[1737020786602,0.28316579,706.3,704.83,0.60333467]
[1737020786805,0.28316579,706.3,704.84,0.26039209]
[1737020787007,0.28316579,706.3,704.85,0.26039209]
[1737020787203,0.28316579,706.3,704.87,0.28374026]
[1737020787602,0.28316579,706.3,704.88,0.863873]
[1737020787809,0.28316579,706.3,704.89,0.26039209]
[1737020788007,0.28316579,706.3,704.91,0.28372416]
[1737020788207,0.28316579,706.3,704.92,0.863873]
[1737020788408,0.28316579,706.3,704.94,0.28371208]
[1737020788609,0.28316579,706.3,704.95,0.863873]
[1737020788909,0.28316579,706.3,704.97,0.28370001]
[1737020789103,0.28316579,706.3,704.98,0.26039209]
[1737020789308,0.28316579,706.3,705.0,0.28368794]
[1737020789610,0.26800999,706.3,705.01,0.26039209]
[1737020789808,2.25627324,708.38,705.01,0.26039209]
[1737020790010,0.28239812,708.22,705.01,0.26039209]
[1737020790608,0.28239812,708.22,705.01,0.60184914]
[1737020790805,0.28239812,708.22,705.02,0.26039209]
[1737020791009,0.28239812,708.22,705.02,0.86219147]
[1737020791204,0.28239812,708.22,705.0,0.28368794]
[1737020791411,0.28239812,708.22,705.03,0.2603535]
[1737020791611,0.28239812,708.22,705.01,0.8621791]
[1737020791806,0.28239812,708.22,705.02,0.2603535]
[1737020792007,5.41878472,708.21,705.01,0.8621791]
[1737020792211,0.28239812,708.22,705.03,0.2603535]
[1737020792212,5.41878472,708.2,705.03,0.2603535]
[1737020792413,1.06052398,706.77,705.47,1.0603293]
[1737020793307,1.06052398,706.7,705.5,1.0603293]
[1737020793915,1.06052398,706.69,705.51,1.0603293]
[1737020794709,1.06052398,706.69,705.5,1.0603293]
[1737020795621,1.06052398,706.66,705.47,1.0603293]
[1737020796414,1.06052398,706.65,705.45,1.0603293]
[1737020797410,1.06052398,706.63,705.45,1.0603293]
[1737020798011,1.06052398,706.63,705.46,0.26036047]
[1737020798216,1.06052398,706.63,705.45,1.0603293]
[1737020798614,1.06052398,706.66,705.48,1.0603293]
[1737020799519,1.06052398,706.69,705.51,1.0603293]
[1737020800718,1.06052398,706.65,705.54,1.0603293]
[1737020801620,1.06052398,706.9,705.37,1.0603293]
[1737020802313,1.06052398,706.91,705.37,1.0603293]
[1737020804520,2.25627324,707.63,705.37,1.0603293]
[1737020804521,1.06052398,706.94,705.37,1.0603293]
[1737020805415,1.06052398,706.94,705.38,1.0603293]
[1737020806820,1.06052398,706.94,705.36,1.0603293]
[1737020807417,1.06052398,706.94,705.37,0.26032654]
[1737020807922,1.06052398,706.94,705.53,1.0603293]
[1737020808222,1.06052398,706.89,705.53,1.0603293]
[1737020808923,1.06052398,706.92,705.53,1.0603293]
[1737020809622,1.06052398,706.92,705.54,0.26025114]
[1737020809819,1.06052398,707.32,705.54,0.26025114]
[1737020810322,1.06052398,707.32,705.55,0.26025114]
[1737020810523,1.06052398,707.32,705.5,0.26025114]
[1737020810726,1.06052398,707.32,705.56,0.26025114]
[1737020811019,1.06052398,707.32,705.51,0.26025114]
[1737020811226,1.06052398,707.22,705.75,1.0603293]
[1737020812118,2.16523646,707.81,703.37,4.3774454]
[1737020812119,1.06052398,707.52,705.5,1.0603293]
[1737020812423,1.06052398,707.52,705.51,0.26022838]
[1737020812824,1.06052398,707.52,705.51,0.25192504]
[1737020813025,1.06052398,707.54,705.51,0.25192504]
[1737020813226,1.06052398,707.54,705.47,1.0603293]
[1737020813917,1.06052398,707.67,705.42,1.0603293]
[1737020814122,1.06052398,707.67,705.48,0.26022092]
[1737020814323,1.06052398,707.67,705.43,0.26022092]
[1737020814619,1.06052398,707.67,705.44,0.26022092]
[1737020814823,1.06052398,707.69,705.44,0.26022092]
[1737020815023,1.06052398,707.69,705.45,0.26022092]
[1737020815325,1.06052398,707.69,705.46,0.26021467]
[1737020815527,1.06052398,707.69,705.47,0.26021467]
[1737020815926,1.06052398,707.43,705.63,1.0603293]
[1737020816330,1.06052398,707.43,705.64,0.26019074]
[1737020816726,1.06052398,707.5,705.64,0.26019074]
[1737020817129,1.06052398,707.5,705.65,0.26019074]
[1737020817532,1.06052398,707.54,705.63,0.26019074]
[1737020817725,1.06052398,707.54,705.66,0.26019074]
[1737020817930,1.06052398,707.54,705.67,0.26019074]
[1737020818231,1.06052398,707.54,705.68,0.26018685]
[1737020818531,1.06052398,707.54,705.58,0.26018685]
[1737020818731,1.06052398,707.54,705.57,1.0603293]
[1737020818732,1.06052398,707.54,705.69,0.26018685]
[1737020818932,1.06052398,707.66,705.7,0.26018685]
[1737020819129,1.06052398,707.66,705.52,0.26018685]
[1737020819326,1.06052398,707.66,705.71,0.26018685]
[1737020819530,1.06052398,707.66,705.72,0.26018685]
[1737020819727,1.06052398,707.66,705.52,0.26018685]
[1737020819931,1.06052398,707.74,705.73,0.26018685]
[1737020820127,1.06052398,707.74,705.74,0.26018685]
[1737020820333,1.06052398,707.74,705.55,0.26018685]
[1737020820533,1.06052398,707.74,705.56,0.26018685]
[1737020820733,1.06052398,707.74,705.57,0.26015565]
[1737020820934,2.10406704,708.37,705.57,0.26015565]
[1737020820935,1.06052398,707.79,705.57,0.26015565]
[1737020821133,1.06052398,707.79,705.55,1.32048495]
[1737020821333,1.06052398,707.79,705.58,0.26015565]
[1737020821631,1.06052398,707.79,705.59,0.26015565]
[1737020821937,1.06052398,707.8,705.56,0.26015565]
[1737020822135,1.06052398,707.8,705.57,0.26015565]
[1737020822330,1.06052398,707.8,705.58,0.26015565]
[1737020822536,1.06052398,707.8,705.59,0.26015565]
[1737020822736,1.06052398,707.8,705.55,0.26015565]
[1737020822939,1.06052398,707.76,705.6,0.26015725]
[1737020823137,1.06052398,707.76,705.61,0.2601606]
[1737020823529,1.06052398,707.76,705.62,0.26015961]
[1737020823735,1.06052398,707.76,705.61,0.26015961]
[1737020823935,1.06052398,707.82,705.62,0.26015961]
[1737020824135,1.06052398,707.82,705.61,0.26015961]
[1737020824336,1.06052398,707.82,705.62,0.26015961]
[1737020824531,1.06052398,707.82,705.61,0.26015961]
[1737020824731,1.06052398,707.81,705.62,0.26015961]
[1737020824936,1.06052398,707.81,705.61,0.26015961]
[1737020825232,1.06052398,707.81,705.62,0.26015961]
[1737020825436,1.06052398,707.81,705.63,0.26015961]
[1737020825739,1.06052398,707.82,705.64,0.26015886]
[1737020825938,1.06052398,707.82,705.54,0.26015886]
[1737020826141,1.06052398,707.82,705.65,0.26015886]
[1737020826338,1.06052398,707.82,705.54,0.85997076]
[1737020826633,1.06052398,707.82,705.66,0.26015886]
[1737020826838,1.06052398,707.83,705.67,0.26015886]
[1737020827239,1.06052398,707.83,705.68,0.26015886]
[1737020827540,1.06052398,707.83,705.69,0.26015886]
[1737020827933,1.06052398,707.83,705.55,0.26015886]
[1737020828137,1.06052398,707.86,705.7,0.26015886]
[1737020828440,1.06052398,707.86,705.52,0.59978998]
[1737020828637,1.06052398,707.86,705.52,0.85995515]
[1737020829335,0.28239812,708.22,705.52,0.85995515]
[1737020829336,1.06052398,707.85,705.52,0.85995515]
[1737020829539,1.06052398,707.85,705.52,0.26016517]
[1737020829734,1.06052398,707.85,705.53,0.85995515]
[1737020829932,1.06052398,707.85,705.54,0.59978998]
[1737020830137,1.06052398,707.85,705.51,0.85995515]
[1737020830335,1.06052398,707.85,705.55,0.26016517]
[1737020830538,1.06052398,707.85,705.56,0.26016517]
[1737020830937,1.06052398,707.85,705.52,0.26016517]
[1737020831139,1.47753447,707.84,705.51,1.0603293]
[1737020831441,1.47753447,707.84,705.52,0.26016826]
[1737020831840,1.47753447,707.84,705.51,0.26016826]
[1737020832041,1.47753447,707.84,705.52,0.260164]
[1737020832437,1.47753447,707.84,705.52,1.0603293]
[1737020832736,1.47753447,707.84,705.53,0.260164]
[1737020833535,1.47753447,707.84,705.55,1.0603293]
[1737020833739,1.47753447,707.84,705.56,0.260164]
[1737020834142,1.47753447,707.84,705.55,1.0603293]
[1737020834337,1.47753447,707.84,705.56,0.26016232]
[1737020835145,1.47753447,707.84,705.58,0.28345474]
[1737020835446,2.53805845,707.84,705.59,0.26016232]
[1737020836046,0.28259364,707.73,705.61,0.28344269]
[1737020836239,0.28259364,707.73,705.62,0.26016232]
[1737020836843,0.28259364,707.73,705.61,0.28344269]
[1737020837150,0.28259364,707.73,705.63,1.0603293]
[1737020837546,0.28259364,707.73,705.64,0.26016207]
[1737020838243,0.28259364,707.73,705.65,0.28342662]
[1737020838447,0.28259364,707.73,705.66,0.26016207]
[1737020838847,0.28259364,707.73,705.67,0.28341859]
[1737020839048,0.28259364,707.73,705.68,0.26016207]
[1737020839249,1.06052398,707.68,705.69,0.28341056]
[1737020839544,0.28262159,707.66,705.69,0.28341056]
[1737020839749,0.28262159,707.66,705.7,0.26016067]
[1737020840144,0.28262159,707.66,705.7,1.32048997]
[1737020840344,0.28262159,707.66,705.71,0.26016596]
[1737020841250,1.06052398,707.63,705.72,1.0603293]
[1737020841449,1.06052398,707.63,705.73,0.26016596]
[1737020842149,1.06052398,707.63,705.73,0.85968952]
[1737020842447,1.06052398,707.45,705.94,1.0603293]
[1737020842650,1.06052398,707.45,705.95,0.26015778]
[1737020843348,1.06052398,707.38,705.99,1.0603293]
[1737020843548,1.06052398,707.38,706.0,0.26015778]
[1737020844144,1.06052398,707.29,706.05,1.0603293]
[1737020844344,1.06052398,707.29,706.06,0.26015778]
[1737020845249,1.06052398,707.29,706.09,1.0603293]
[1737020846247,1.06052398,707.28,706.1,1.0603293]
[1737020847250,1.06052398,707.25,706.09,1.0603293]
[1737020849650,1.06052398,707.29,706.08,1.0603293]
[1737020850750,1.06052398,707.27,706.11,1.0603293]
[1737020851551,1.06052398,707.27,706.16,1.0603293]
[1737020851748,0.28273746,707.37,706.16,1.0603293]
[1737020852455,0.28273746,707.37,706.15,1.0603293]
[1737020853552,0.28273746,707.37,706.1,1.0603293]
[1737020854357,0.28273746,707.37,706.15,1.0603293]
[1737020856261,0.28273746,707.37,706.1,1.0603293]
[1737020859061,0.28273746,707.37,706.06,1.0603293]
[1737020861060,0.28273746,707.37,706.05,1.0603293]
[1737020862267,0.28273746,707.37,706.02,1.0603293]
[1737020863070,0.28273746,707.37,705.74,0.28339048]
[1737020863071,0.28273746,707.37,706.0,1.0603293]
[1737020863265,0.28273746,707.37,706.01,0.26011977]
[1737020864064,0.28273746,707.37,706.02,1.0603293]
[1737020865172,0.28273746,707.37,706.03,1.0603293]
[1737020866467,0.28273746,707.37,706.04,0.26011472]
[1737020867174,0.28273746,707.37,706.06,1.0603293]
[1737020867473,0.28273746,707.37,706.07,0.26011472]
[1737020867673,0.28273746,707.37,706.06,1.0603293]
[1737020867974,0.28273746,707.37,706.07,1.0603293]
[1737020868174,0.28273746,707.37,706.08,0.26012195]
[1737020869268,1.06052398,707.35,706.11,1.0603293]
[1737020869573,1.06052398,707.35,706.12,0.2601255]
[1737020869969,1.06052398,707.35,706.11,1.0603293]
[1737020870367,1.06052398,707.35,706.12,0.26012531]
[1737020870871,0.28273746,707.37,706.12,0.26012531]
[1737020870872,1.06052398,707.34,706.12,0.26012531]
[1737020871474,1.06052398,707.34,706.11,1.0603293]
[1737020871777,1.06052398,707.34,706.12,0.26012589]
[1737020872776,1.06052398,707.33,706.12,0.26012589]
[1737020873172,1.06052398,707.33,706.11,1.0603293]
[1737020873373,1.06052398,707.33,706.12,0.26012566]
[1737020873571,1.06052398,707.31,706.12,1.32045496]
[1737020873770,1.06052398,707.31,706.12,1.0603293]
[1737020873967,1.06052398,707.31,706.13,0.26012536]
[1737020874169,1.06052398,707.31,706.12,1.0603293]
[1737020874770,1.06052398,707.31,706.13,1.0603293]
[1737020875369,0.28273746,707.37,706.01,1.0603293]
[1737020876374,0.28273746,707.37,706.02,1.0603293]
[1737020878376,0.28273746,707.37,706.04,1.0603293]
[1737020879878,0.28273746,707.37,706.05,1.0603293]
[1737020880974,0.28273746,707.37,706.06,1.0603293]
[1737020882271,0.28273746,707.37,706.08,1.0603293]
[1737020883280,0.28273746,707.37,706.09,1.0603293]
[1737020884180,0.28273746,707.37,706.11,1.0603293]
[1737020885579,0.28273746,707.37,705.74,0.28339048]
[1737020885580,1.06052398,707.24,706.22,1.0603293]
[1737020886480,1.06052398,707.24,705.76,0.71645588]
[1737020886481,1.06052398,707.23,706.21,1.0603293]
[1737020887386,0.28273746,707.37,706.24,1.0603293]
[1737020887387,1.06052398,707.2,706.24,1.0603293]
[1737020889581,1.06052398,707.2,706.23,1.0603293]
[1737020890887,1.06052398,707.24,706.23,1.0603293]
[1737020892193,0.28273746,707.37,706.21,1.0603293]
[1737020892194,1.06052398,707.27,706.21,1.0603293]
[1737020893190,1.06052398,707.27,705.72,1.27239516]
[1737020893191,1.06052398,707.29,706.24,1.0603293]
[1737020893991,1.06052398,707.3,706.25,1.0603293]
[1737020895096,1.06052398,707.31,706.24,1.0603293]
[1737020895797,1.06052398,707.3,706.24,1.0603293]
[1737020896998,1.06052398,707.3,706.23,1.0603293]
[1737020898099,1.06052398,707.31,706.23,1.0603293]
[1737020899198,1.06052398,707.28,706.22,1.0603293]
[1737020900095,0.28273746,707.37,705.91,1.0603293]
[1737020900096,1.06052398,707.27,706.21,1.0603293]
[1737020900900,1.06052398,707.28,706.22,1.0603293]
[1737020902096,1.06052398,707.25,706.26,1.0603293]
[1737020903200,1.06052398,707.25,705.82,1.27239516]
[1737020903201,0.28278943,707.24,706.06,1.0603293]
[1737020904304,0.28278943,707.24,705.31,2.16483898]
[1737020904305,0.28278943,707.24,706.02,1.0603293]
[1737020905304,0.28278943,707.24,705.97,1.0603293]
[1737020906105,0.28278943,707.24,706.02,1.0603293]
[1737020907204,0.28278943,707.24,706.01,1.0603293]
[1737020909503,0.28278943,707.24,706.0,1.0603293]
[1737020910602,0.28278943,707.24,706.01,1.0603293]
[1737020911404,0.28278943,707.24,705.94,1.0603293]
[1737020912506,0.28278943,707.24,705.92,1.0603293]
[1737020913505,0.28278943,707.24,705.56,1.0603293]
[1737020913506,0.28278943,707.24,705.96,1.0603293]
[1737020914507,0.28278943,707.24,705.95,1.0603293]
[1737020916603,0.28278943,707.24,705.94,1.0603293]
[1737020919711,0.28278943,707.24,705.84,1.0603293]
[1737020921007,0.28278943,707.24,705.76,1.0603293]
[1737020921812,0.28278943,707.24,705.75,1.0603293]
[1737020922712,0.28278943,707.24,705.75,1.34371576]
[1737020922907,0.28278943,707.24,705.75,0.28338646]
[1737020925007,0.28278943,707.24,705.76,1.32050285]
[1737020925206,0.28278943,707.24,705.77,0.26017355]
[1737020926313,0.28278943,707.24,705.88,1.0603293]
[1737020926511,0.28278943,707.24,705.89,0.26017355]
[1737020926911,0.28278943,707.24,705.88,1.0603293]
[1737020927215,0.28278943,707.24,705.91,1.0603293]
[1737020928507,0.28278943,707.24,705.92,0.26012371]
[1737020929211,0.28278943,707.24,706.02,1.0603293]
[1737020936319,0.28278943,707.24,706.0,1.0603293]
[1737020939614,0.28278943,707.24,705.99,1.0603293]
[1737020940817,0.28278943,707.24,705.98,1.0603293]
[1737020941716,0.28278943,707.24,705.99,0.26010861]
[1737020942116,0.28278943,707.24,706.0,0.26010861]
[1737020942313,0.28278943,707.24,706.01,0.26010861]
[1737020942515,0.28278943,707.24,705.97,1.0603293]
[1737020942716,0.28278943,707.24,705.98,0.26010633]
[1737020943016,0.28278943,707.24,706.01,1.0603293]
[1737020943220,0.28278943,707.24,706.02,0.26010633]
[1737020943418,0.28278943,707.24,706.01,1.0603293]
[1737020943718,0.28278943,707.24,705.99,1.0603293]
[1737020944620,0.28278943,707.24,705.97,1.0603293]
[1737020944815,0.28278943,707.24,705.98,0.26010616]
[1737020945218,0.28278943,707.24,705.97,1.0603293]
[1737020945418,0.28278943,707.24,705.98,0.26010603]
[1737020945822,0.28278943,707.24,705.98,1.32043533]
[1737020946116,0.28278943,707.24,705.99,0.26010603]
[1737020946322,0.28278943,707.24,705.98,1.0603293]
[1737020946523,0.28278943,707.24,705.99,0.26010692]
[1737020947120,0.28278943,707.24,706.0,0.26010692]
[1737020947320,0.28278943,707.24,706.01,0.26010692]
[1737020947515,0.28278943,707.24,706.02,0.26010692]
[1737020947723,0.28278943,707.24,706.03,0.26010692]
[1737020947926,0.28278943,707.24,705.96,1.0603293]
[1737020948125,0.28278943,707.24,705.99,1.0603293]
[1737020948326,0.28278943,707.24,706.0,0.2601069]
[1737020949120,0.28278943,707.24,706.0,1.3204362]
[1737020949319,0.28278943,707.24,706.01,0.2601069]
[1737020949824,0.28278943,707.24,706.0,1.0603293]
[1737020950920,0.28278943,707.24,705.98,1.0603293]
[1737020951125,0.28278943,707.24,705.99,0.26010373]
[1737020951925,0.28278943,707.24,706.01,1.0603293]
[1737020952125,0.28278943,707.24,706.02,0.26010373]
[1737020953022,0.28278943,707.24,706.02,1.32043303]
[1737020953232,0.28278943,707.24,706.03,0.26010373]
[1737020953432,0.28278943,707.24,706.02,1.0603293]
[1737020954228,0.28278943,707.24,705.75,0.28338646]
[1737020954229,0.28278943,707.24,706.01,1.0603293]
[1737020955331,0.28278943,707.24,705.94,1.0603293]
[1737020957131,0.28278943,707.24,705.95,0.28330618]
[1737020957330,0.28278943,707.24,705.95,1.34363548]
[1737020958632,0.28278943,707.24,705.97,1.0603293]
[1737020959730,0.28278943,707.24,706.0,1.0603293]
[1737020960729,0.28278943,707.24,706.02,1.0603293]
[1737020961529,0.28278943,707.24,706.06,1.0603293]
[1737020962632,0.28278943,707.24,706.07,1.0603293]
[1737020963835,0.28278943,707.24,706.06,1.0603293]
[1737020965131,0.28278943,707.24,706.14,1.0603293]
[1737020966339,0.28278943,707.24,706.23,1.0603293]
[1737020967538,0.28278943,707.24,706.24,1.0603293]
[1737020969441,0.28278943,707.24,706.22,1.0603293]
[1737020970536,0.28278943,707.24,706.23,1.0603293]
[1737020971444,0.28278943,707.24,705.95,0.28330618]
[1737020978352,0.28278943,707.24,705.96,1.0603293]
[1737020979050,0.28278943,707.24,705.95,0.28330618]
[1737020979051,0.28278943,707.24,706.05,1.0603293]
[1737020979851,0.28278943,707.24,706.03,1.0603293]
[1737020981051,0.28278943,707.24,706.02,1.0603293]
[1737020982152,0.28278943,707.24,706.04,1.0603293]
[1737020982451,0.28278943,707.24,706.05,0.28326605]
[1737020989159,0.28278943,707.24,706.08,1.0603293]
[1737020990157,0.28278943,707.24,706.05,0.28326605]
[1737020990158,0.28278943,707.24,706.12,1.0603293]
[1737020991353,0.28278943,707.24,706.11,1.0603293]
[1737020992557,0.28278943,707.24,706.16,1.0603293]
[1737020993565,0.28278943,707.24,706.18,1.0603293]
[1737020995756,0.28278943,707.24,706.17,1.0603293]
[1737020996965,0.28278943,707.24,706.16,1.0603293]
[1737020997765,0.28278943,707.24,706.15,1.0603293]
[1737020998765,0.28278943,707.24,706.16,1.0603293]
[1737020999570,0.28278943,707.24,706.05,0.28326605]
[1737020999571,0.28278943,707.24,706.15,1.0603293]
[1737021000671,0.28278943,707.24,706.16,1.0603293]
[1737021001472,0.28278943,707.24,706.07,1.0603293]
[1737021002773,0.28278943,707.24,706.1,1.0603293]
[1737021004075,0.28278943,707.24,706.05,0.28326605]
[1737021004076,0.28278943,707.24,706.11,1.0603293]
[1737021005172,0.28278943,707.24,706.12,1.0603293]
[1737021006272,0.28278943,707.24,706.05,0.28326605]
[1737021015488,0.28278943,707.24,706.05,1.34359535]
[1737021016287,0.28278943,707.24,706.18,1.0603293]
[1737021017389,0.28278943,707.24,706.17,1.0603293]
[1737021018385,0.28278943,707.24,706.16,1.0603293]
[1737021019493,0.28278943,707.24,706.05,0.28326605]
[1737021023896,0.28278943,707.24,706.06,1.0603293]
[1737021025498,1.06052398,707.22,706.05,1.34359535]
[1737021026599,0.28280143,707.21,706.05,0.28326605]
[1737021029897,0.28280143,707.21,705.92,1.0603293]
[1737021030096,0.28280143,707.21,705.78,1.0603293]
[1737021031099,0.28280143,707.21,705.74,1.0603293]
[1737021031900,0.28280143,707.21,705.75,0.26020025]
[1737021032397,0.28280143,707.21,705.76,0.26019469]
[1737021032703,0.28280143,707.21,705.72,1.0603293]
[1737021033002,0.28280143,707.21,705.75,1.0603293]
[1737021033303,0.28280143,707.21,705.76,0.26019768]
[1737021033505,0.28280143,707.21,705.76,0.26019769]
[1737021033896,0.28280143,707.21,705.77,0.26019769]
[1737021034099,0.28280143,707.21,705.78,0.26019113]
[1737021034301,0.28280143,707.21,705.79,0.26019113]
[1737021034498,0.28280143,707.21,705.8,0.26019113]
[1737021034698,0.28280143,707.21,705.74,0.26019104]
[1737021034899,0.28280143,707.21,705.81,0.26019104]
[1737021035104,0.28280143,707.21,705.82,0.26019104]
[1737021035300,0.28280143,707.21,705.83,0.26019107]
[1737021035605,0.28280143,707.21,705.84,0.26019107]
[1737021035904,0.28280143,707.21,705.85,0.26019107]
[1737021036102,0.28280143,707.21,705.86,0.26019107]
[1737021036304,0.28280143,707.21,705.87,0.26019107]
[1737021036505,0.28280143,707.21,705.8,1.0603293]
[1737021036801,0.28280143,707.21,705.81,0.26019163]
[1737021037405,0.28280143,707.21,705.78,1.0603293]
[1737021037606,0.28280143,707.21,705.79,0.26019163]
[1737021037806,0.28280143,707.21,705.8,0.26018094]
[1737021038000,0.28280143,707.21,705.81,0.26018094]
[1737021038199,0.28280143,707.21,705.74,1.0603293]
[1737021038403,0.28280143,707.21,705.75,0.26018015]
[1737021039200,0.28280143,707.21,705.76,1.0603293]
[1737021039404,0.28280143,707.21,705.77,0.26018015]
[1737021039600,0.28280143,707.21,705.76,1.0603293]
[1737021040308,0.28280143,707.21,705.7,1.0603293]
[1737021040606,0.28280143,707.21,705.71,0.54357249]
[1737021040799,0.28280143,707.21,705.72,0.26016996]
[1737021041004,0.28280143,707.21,705.72,0.54356847]
[1737021041309,0.28280143,707.21,705.73,0.26016996]
[1737021041807,0.28280143,707.21,705.72,0.28339851]
[1737021042107,0.28280143,707.21,705.73,0.26017281]
[1737021043106,0.28280143,707.21,705.74,0.26016731]
[1737021043307,0.28280143,707.21,705.72,0.28339851]
[1737021043501,0.28280143,707.21,705.73,0.26016731]
[1737021043702,0.28280143,707.21,705.73,0.52033462]
[1737021044005,0.28280143,707.21,705.74,0.26016731]
[1737021044206,0.28280143,707.21,705.73,0.26016731]
[1737021045206,0.28280143,707.21,705.74,0.2601658]
[1737021045709,0.28280143,707.21,705.73,0.26016731]
[1737021045710,0.28280143,707.21,705.75,0.26016586]
[1737021045910,0.28280143,707.21,705.76,0.26016586]
[1737021046106,0.28280143,707.21,705.77,0.26016586]
[1737021046308,0.28280143,707.21,705.73,1.32049661]
[1737021046504,0.28280143,707.21,705.74,0.54355628]
[1737021046811,0.28280143,707.21,705.76,1.0603293]
[1737021047110,0.28280143,707.21,705.77,0.2601658]
[1737021047825,0.28280143,707.21,705.78,1.0603293]
[1737021049012,0.28280143,707.21,705.79,0.26016719]
[1737021049407,0.28280143,707.21,705.79,1.32049649]
[1737021049612,0.28280143,707.21,705.8,0.54353358]
[1737021049807,0.28280143,707.21,705.81,0.54352956]
[1737021050012,0.28280143,707.21,705.82,0.54352555]
[1737021050210,0.28280143,707.21,705.83,0.54352153]
[1737021050414,0.28280143,707.21,705.83,0.28335434]
[1737021050814,0.28280143,707.21,705.91,1.0603293]
[1737021051713,0.28280143,707.21,705.86,1.0603293]
[1737021052715,0.28280143,707.21,705.89,1.0603293]
[1737021053710,0.28280143,707.21,705.83,0.28335434]
[1737021054813,0.28280143,707.21,705.88,1.0603293]
[1737021055013,0.28280143,707.21,705.89,0.26013472]
[1737021055815,0.28280143,707.21,706.0,1.0603293]
[1737021057613,0.28280143,707.21,705.99,1.0603293]
[1737021058616,0.28280143,707.21,705.96,1.0603293]
[1737021059919,0.28280143,707.21,705.97,0.26010588]
[1737021060218,0.28280143,707.21,705.98,0.26010477]
[1737021060418,0.28280143,707.21,705.95,1.0603293]
[1737021060719,0.28280143,707.21,705.96,0.26009918]
[1737021061019,0.28280143,707.21,706.02,1.0603293]
[1737021061722,0.28280143,707.21,706.01,1.0603293]
[1737021062118,0.28280143,707.21,706.02,0.28327809]
[1737021079330,0.28280143,707.21,706.03,1.0603293]
[1737021080431,0.28280143,707.21,706.04,1.0603293]
[1737021081233,0.28280143,707.21,706.05,0.26012444]
[1737021081432,0.28280143,707.21,706.05,1.32045374]
[1737021081627,0.28280143,707.21,706.05,1.0603293]
[1737021082632,0.28280143,707.21,706.02,0.28327809]
[1737021082633,0.28280143,707.21,706.03,1.0603293]
[1737021082827,0.28280143,707.21,706.04,0.26011062]
[1737021083135,0.28280143,707.21,706.03,1.0603293]